bitfinex-derivatives/quotes_ETHF0:USTF0_20250520
["timestamp","ask_amount","ask_price","bid_price","bid_amount"]
[1747725106004,1.7448,2544.9,2544.8,5.78565]
[1747725106615,1.7448,2544.9,2544.8,0.78565]
[1747725107412,3.2079,2544.9,2544.8,0.78565]
[1747725107606,0.08486477,2544.8,2544.6,1.508]
[1747725107811,0.97819651,2545.4,2545.3,0.7855]
[1747725108009,0.97819651,2545.4,2545.3,11.9725]
[1747725108205,3.71819651,2545.4,2545.3,11.9725]
[1747725108904,2.66385651,2545.4,2545.3,20.1803]
[1747725109211,2.74,2545.5,2545.4,0.78547]
[1747725109518,2.74,2545.5,2545.4,2.23177]
[1747725109716,2.74,2545.5,2545.4,7.23177]
[1747725109902,2.74,2545.5,2545.4,2.23177]
[1747725115715,0.08486477,2545.4,2545.1,0.00589681]
[1747725116018,1.66186477,2545.4,2545.3,0.7855]
[1747725116215,4.40186477,2545.4,2545.3,0.7855]
[1747725118119,2.82486477,2545.4,2545.3,0.7855]
[1747725120224,6.03266477,2545.4,2545.3,0.7855]
[1747725121021,6.03266477,2545.4,2545.3,2.37]
[1747725121220,2.82486477,2545.4,2545.3,0.7855]
[1747725121420,6.03266477,2545.4,2545.2,11.93051]
[1747725121721,1.4483,2545.3,2545.2,11.145]
[1747725122122,0.78553,2545.2,2545.1,0.00589681]
[1747725122515,0.78553,2545.2,2544.7,0.78567]
[1747725122516,6.5674,2545.2,2544.7,0.78567]
[1747725122820,3.99343,2544.9,2544.7,0.78567]
[1747725123021,1.5674,2544.8,2544.7,0.78567]
[1747725123219,4.3074,2544.8,2544.7,0.78567]
[1747725123519,11.56087,2544.8,2544.5,0.79162681]
[1747725123721,8.10047,2544.8,2544.5,0.79162681]
[1747725123923,7.3148,2544.8,2544.5,0.00589681]
[1747725124122,7.3148,2544.8,2544.7,0.78568]
[1747725125522,5.7752,2544.8,2544.7,0.78568]
[1747725125822,2.74,2544.8,2544.7,0.78568]
[1747725126028,2.82486477,2544.8,2544.7,0.78568]
[1747725126615,2.82486477,2544.8,2544.5,11.93860681]
[1747725126819,1.5816,2544.7,2544.5,11.93860681]
[1747725127025,1.5816,2544.7,2544.5,11.15289681]
[1747725127222,5.10728,2544.7,2544.5,11.93861681]
[1747725127625,4.3216,2544.7,2544.6,0.78571]
[1747725128223,4.3216,2544.7,2544.6,2.38911]
[1747725128728,2.74,2544.7,2544.6,2.38911]
[1747725128927,7.74,2544.7,2544.5,0.00589681]
[1747725129221,2.74,2544.7,2544.6,0.78571]
[1747725130230,0.08486477,2544.8,2544.7,0.78568]
[1747725131129,2.82486477,2544.8,2544.5,2.39502681]
[1747725131346,1.4809,2544.7,2544.5,2.39502681]
[1747725131524,1.4809,2544.7,2544.5,1.60929681]
[1747725131824,1.4809,2544.7,2544.5,2.39503681]
[1747725132226,4.2209,2544.7,2544.6,0.78571]
[1747725133532,2.74,2544.7,2544.6,0.78571]
[1747725134224,0.08486477,2544.8,2544.5,1.60929681]
[1747725134225,0.08486477,2544.8,2544.7,0.78568]
[1747725134931,0.08486477,2544.8,2544.5,1.60929681]
[1747725134932,0.08486477,2544.8,2544.6,0.7857]
[1747725135125,1.5888,2544.7,2544.6,0.7857]
[1747725136032,1.5888,2544.7,2544.5,2.39501681]
[1747725136233,1.5888,2544.7,2544.5,1.60929681]
[1747725136734,1.5888,2544.7,2544.5,2.39503681]
[1747725137234,4.3288,2544.7,2544.5,2.39503681]
[1747725137535,4.3288,2544.7,2544.6,0.78571]
[1747725137736,4.3288,2544.7,2544.5,1.60929681]
[1747725137935,4.3288,2544.7,2544.5,2.39503681]
[1747725138228,0.78571,2544.6,2544.5,0.00589681]
[1747725138433,1.96437,2544.5,2543.8,0.78596]
[1747725138625,3.99367,2544.1,2543.8,0.78596]
[1747725138825,1.5468,2544.0,2543.8,0.78596]
[1747725139034,1.5468,2544.0,2543.7,0.78599]
[1747725139232,4.2868,2544.0,2543.7,0.78599]
[1747725140337,3.2078,2543.8,2543.6,0.00589681]
[1747725140633,1.5744,2543.7,2543.6,0.79191681]
[1747725140830,3.2078,2543.8,2543.6,0.00589681]
[1747725141031,3.2078,2543.8,2543.6,0.79190681]
[1747725141235,1.5744,2543.7,2543.6,0.79191681]
[1747725142232,4.3144,2543.7,2543.6,0.79191681]
[1747725142535,4.3144,2543.7,2543.6,0.00589681]
[1747725142733,4.3144,2543.7,2543.6,0.79191681]
[1747725143532,4.3144,2543.7,2543.6,0.00589681]
[1747725143731,4.3144,2543.7,2543.6,0.79191681]
[1747725144031,2.74,2543.7,2543.6,0.79191681]
[1747725144332,3.2078,2543.8,2543.7,0.78599]
[1747725144536,3.2078,2543.8,2543.7,1.5871]
[1747725144737,3.2078,2543.8,2543.7,2.37309]
[1747725146230,0.00589681,2544.1,2544.0,0.7859]
[1747725146430,0.00589681,2544.1,2544.0,11.8759]
[1747725146626,6.81e-06,2544.1,2544.0,11.8759]
[1747725146827,6.81e-06,2544.1,2544.0,18.4135]
[1747725147035,0.79433804,2544.4,2544.3,0.78581]
[1747725147233,0.79433804,2544.5,2544.4,0.78577]
[1747725147440,0.79433804,2544.5,2544.4,13.41337]
[1747725147737,0.79433804,2544.5,2544.4,12.6276]
[1747725147937,0.79433804,2544.5,2544.4,13.41337]
[1747725150737,0.79433804,2544.5,2544.4,18.41337]
[1747725150940,0.79433804,2544.5,2544.4,13.41337]
[1747725151133,0.08486477,2544.6,2544.5,0.78574]
[1747725151334,0.08486477,2544.6,2544.5,1.4713]
[1747725151735,0.08486477,2544.6,2544.5,2.25704]
[1747725157143,0.08980476,2544.6,2544.5,2.25704]
[1747725158344,4.76e-06,2544.6,2544.5,2.25704]
[1747725158540,4.76e-06,2544.6,2544.5,3.89524]
[1747725159041,4.76e-06,2544.6,2544.5,8.89524]
[1747725159242,2.74000476,2544.6,2544.5,8.89524]
[1747725159444,2.82486953,2544.6,2544.5,3.89524]
[1747725159843,2.32486953,2544.6,2544.5,3.89524]
[1747725160044,1.83076953,2544.6,2544.5,3.89524]
[1747725160248,0.08486477,2544.6,2544.5,3.89524]
[1747725160444,0.08486477,2544.6,2544.5,2.25704]
[1747725161245,0.78576,2544.5,2544.3,11.087]
[1747725161448,2.33286,2544.5,2544.3,11.087]
[1747725161949,2.33286,2544.5,2544.2,0.78583]
[1747725162142,5.07286,2544.5,2544.2,11.87283]
[1747725162448,4.2871,2544.5,2544.2,11.087]
[1747725162644,4.2871,2544.5,2544.4,0.78577]
[1747725163147,4.2871,2544.5,2544.3,1.6305]
[1747725163344,2.74,2544.5,2544.4,0.78577]
[1747725164650,2.38,2544.5,2544.4,0.78577]
[1747725165244,0.00589681,2544.7,2544.6,0.78571]
[1747725165450,0.00589681,2544.7,2544.6,3.99351]
[1747725165854,0.00589681,2544.7,2544.6,5.60721]
[1747725166246,0.00589681,2544.7,2544.6,10.60721]
[1747725167158,1.5889387,2545.3,2545.2,0.78553]
[1747725167452,1.5889387,2545.3,2545.2,11.87253]
[1747725167755,1.0889387,2545.3,2545.2,56.47853]
[1747725167952,1.0889387,2545.3,2545.2,57.2005]
[1747725168153,1.0889387,2545.3,2545.2,57.98603]
[1747725169058,8.7e-06,2545.3,2545.2,57.98603]
[1747725169265,6.64e-06,2545.6,2545.5,0.78543]
[1747725169558,6.64e-06,2545.6,2545.5,3.99323]
[1747725170660,1.6484,2546.6,2545.9,0.78531]
[1747725170661,1.10625058,2546.0,2545.9,0.78531]
[1747725170858,0.21381058,2546.0,2545.9,15.07811]
[1747725171154,1.6485,2546.7,2546.5,0.78511]
[1747725171357,1.6485,2546.7,2546.6,11.8701]
[1747725172068,5.11824147,2547.1,2546.6,11.085]
[1747725172269,5.11824147,2547.1,2547.0,0.78497]
[1747725173170,7.85824147,2547.1,2547.0,0.78497]
[1747725173768,7.85824147,2547.1,2547.0,11.86797]
[1747725175874,5.9478,2547.1,2547.0,11.86797]
[1747725176673,5.9478,2547.1,2546.7,1.6297]
[1747725176870,5.9478,2547.1,2546.6,3.2078]
[1747725177174,1.5989,2547.0,2546.7,10.996]
[1747725177376,3.99283,2546.8,2546.7,10.996]
[1747725177867,0.78516,2546.4,2546.3,0.00589681]
[1747725178064,3.99296,2546.4,2546.3,0.00589681]
[1747725178265,5.9478,2546.4,2546.3,0.79108681]
[1747725178465,5.9478,2546.4,2546.3,0.00589681]
[1747725178966,6.73296,2546.4,2546.3,0.00589681]
[1747725179172,0.78523,2546.2,2545.8,11.78131]
[1747725179373,3.2078,2546.0,2545.8,10.996]
[1747725179675,2.38421,2545.9,2545.8,10.996]
[1747725179876,4.00101,2545.9,2545.8,10.996]
[1747725180069,6.74101,2545.9,2545.8,10.996]
[1747725180470,0.78536,2545.8,2545.6,0.00589681]
[1747725180670,4.7804,2545.7,2545.6,0.00589681]
[1747725180875,1.5726,2545.7,2545.6,0.79129681]
[1747725181072,4.3126,2545.7,2545.6,2.38749681]
[1747725181376,2.74,2545.7,2545.6,2.38749681]
[1747725181769,2.74,2545.7,2545.6,5.59529681]
[1747725182476,1.74,2545.7,2545.6,5.59529681]
[1747725182678,1.74,2545.7,2545.6,4.80989681]
[1747725182876,1.74,2545.7,2545.6,15.80689681]
[1747725183078,1.74,2545.7,2545.6,12.59909681]
[1747725183375,1.74,2545.7,2545.6,13.38449681]
[1747725183972,1.74,2545.7,2545.6,12.59909681]
[1747725184673,1.82486477,2545.7,2545.6,12.59909681]
[1747725185671,1.82486477,2545.7,2545.6,16.59229681]
[1747725186778,1.32486477,2545.7,2545.6,16.59229681]
[1747725187583,0.00589681,2546.1,2546.0,0.78528]
[1747725187768,0.00589681,2546.1,2546.0,3.99308]
[1747725189090,2.74589681,2546.1,2546.0,3.99308]
[1747725189270,2.74589681,2546.1,2546.0,8.99308]
[1747725190181,0.00589681,2546.1,2546.0,8.99308]
[1747725191379,6.81e-06,2546.1,2546.0,8.99308]
[1747725194183,1.5991,2546.9,2546.8,0.78503]
[1747725194485,1.5991,2546.9,2546.8,11.78003]
[1747725195079,4.3391,2546.9,2546.8,11.78003]
[1747725195985,9.3391,2546.9,2546.8,10.995]
[1747725196389,10.12411,2546.9,2546.7,10.995]
[1747725196686,3.2078,2546.8,2546.7,11.78006]
[1747725196887,4.8452,2546.8,2546.7,11.78006]
[1747725197186,7.5852,2546.8,2546.7,11.78006]
[1747725198275,12.5852,2546.8,2546.7,0.78506]
[1747725198477,7.5852,2546.8,2546.7,0.78506]
[1747725199980,7.67006477,2546.8,2546.7,0.78506]
[1747725201791,7.67006477,2546.8,2546.7,11.77906]
[1747725202587,7.67006477,2546.8,2546.7,0.78506]
[1747725202787,8.45509477,2546.8,2546.6,0.78508]
[1747725202987,8.45509477,2546.8,2546.7,10.994]
[1747725203190,8.45509477,2546.8,2546.0,10.994]
[1747725203191,14.63269477,2546.8,2546.0,10.994]
[1747725203484,3.2078,2546.3,2546.0,10.994]
[1747725203699,4.7459,2546.2,2546.0,11.77927]
[1747725203877,4.7459,2546.2,2546.0,10.994]
[1747725204077,4.7459,2546.2,2545.5,1.5995]
[1747725204284,3.99317,2545.7,2545.4,0.78545]
[1747725204486,0.78547,2545.4,2545.1,0.78553]
[1747725204689,4.8093,2545.3,2544.9,10.994]
[1747725204990,3.2078,2545.0,2544.5,0.78572]
[1747725205189,3.50140845,2545.3,2544.5,0.78574]
[1747725205190,3.2078,2544.6,2544.5,0.78574]
[1747725205389,4.8018,2544.9,2544.3,12.5457]
[1747725205590,4.80769681,2544.9,2544.3,12.55159681]
[1747725205796,4.80769681,2544.9,2544.8,0.78565]
[1747725206188,2.74589681,2544.9,2544.8,11.78165]
[1747725206895,5.95369681,2544.9,2544.8,10.996]
[1747725207688,5.95369681,2544.9,2544.6,1.5517]
[1747725207888,1.5195,2544.8,2544.6,12.4567]
[1747725209295,1.5195,2544.8,2544.6,10.905]
[1747725209495,0.78568,2544.7,2544.6,10.905]
[1747725209691,8.1151,2544.8,2544.1,10.907]
[1747725209895,3.2078,2544.4,2543.9,10.907]
[1747725210089,1.5195,2544.6,2544.5,0.78574]
[1747725210590,3.2078,2544.7,2544.6,0.78571]
[1747725211493,3.2078,2544.7,2544.6,11.69271]
[1747725212397,4.8155,2544.7,2544.6,11.69271]
[1747725212598,4.8155,2544.7,2544.6,10.907]
[1747725213096,7.5555,2544.7,2544.0,1.5683]
[1747725213297,3.2078,2544.4,2544.2,0.78582]
[1747725213592,3.2078,2544.4,2544.1,2.36985]
[1747725213992,3.2078,2544.4,2544.2,0.78583]
[1747725214297,7.5995,2544.4,2544.2,0.78583]
[1747725214493,13.38527,2544.4,2543.9,0.78592]
[1747725214688,13.38527,2544.4,2543.7,12.492]
[1747725214900,7.5995,2544.4,2544.2,0.78582]
[1747725215092,8.38527,2544.4,2544.1,0.78585]
[1747725215592,13.38527,2544.4,2543.7,12.492]
[1747725215791,13.38527,2544.4,2543.7,10.908]
[1747725216000,12.5995,2544.4,2543.7,10.908]
[1747725216292,3.2078,2543.8,2543.7,0.78599]
[1747725217499,2.7078,2543.8,2543.7,0.78599]
[1747725217894,4.8337,2544.2,2544.1,0.78587]
[1747725218201,7.5737,2544.2,2544.1,0.78587]
[1747725218423,7.5737,2544.2,2544.0,10.911]
[1747725218605,7.5737,2544.2,2544.0,11.69688]
[1747725219096,7.5737,2544.2,2544.0,10.911]
[1747725219304,7.5737,2544.2,2544.1,0.78587]
[1747725219507,7.5737,2544.2,2544.1,2.31807]
[1747725221099,7.5737,2544.2,2543.5,0.00589681]
[1747725221299,7.5737,2544.2,2544.0,0.78588]
[1747725221499,7.5737,2544.2,2543.7,1.5322]
[1747725221799,7.5737,2544.2,2543.9,0.78593]
[1747725221999,7.5737,2544.2,2543.8,0.78594]
[1747725222195,7.5737,2544.2,2543.9,1.5322]
[1747725222709,8.35955,2544.2,2543.9,1.5322]
[1747725223207,7.5737,2544.2,2543.7,0.78598]
[1747725223508,3.2078,2543.9,2543.7,0.78598]
[1747725223700,3.2078,2543.9,2543.8,0.78596]
[1747725224308,5.9478,2543.9,2543.8,0.78596]
[1747725225509,2.74,2543.9,2543.7,2.31407]
[1747725225910,2.24,2543.9,2543.8,2.44536]
[1747725226109,1.74,2543.9,2543.8,2.44536]
[1747725227211,5.61956,2544.2,2543.9,0.78592]
[1747725227406,5.61956,2544.2,2544.0,1.6594]
[1747725227816,0.78587,2544.1,2544.0,1.6594]
[1747725228207,2.45917,2544.1,2544.0,1.6594]
[1747725228422,2.45917,2544.1,2544.0,0.907767]
[1747725228619,1.6733,2544.1,2544.0,1.693667]
[1747725229212,4.4133,2544.1,2544.0,0.7859]
[1747725230525,4.49816477,2544.1,2544.0,0.7859]
[1747725231222,1.75816477,2544.1,2544.0,0.7859]
[1747725231423,1.6733,2544.1,2543.6,16.08481]
[1747725231623,2.45918,2544.1,2544.0,0.7859]
[1747725232121,5.19918,2544.1,2544.0,0.7859]
[1747725232321,4.49816477,2544.1,2544.0,0.7859]
[1747725232717,2.82486477,2544.1,2544.0,0.7859]
[1747725233117,0.08486477,2544.1,2544.0,0.7859]
[1747725234135,0.78594,2543.9,2543.7,1.5449]
[1747725234417,3.99375,2543.9,2543.7,1.5449]
[1747725234631,0.786,2543.7,2543.5,0.00589681]
[1747725234816,4.7623,2543.6,2543.5,0.00589681]
[1747725235016,5.54832,2543.6,2543.5,0.00589681]
[1747725235219,8.28832,2543.6,2543.5,0.00589681]
[1747725237528,0.78618,2543.1,2543.0,12.5717]
[1747725237723,3.99398,2543.1,2543.0,12.5717]
[1747725237925,3.2078,2543.1,2543.0,13.35791]
[1747725239227,0.00589681,2543.3,2543.2,0.78615]
[1747725240528,3.2078,2543.7,2543.6,0.78602]
[1747725240720,3.2078,2543.7,2543.6,11.60502]
[1747725242832,3.99379,2543.7,2543.6,10.819]
[1747725243033,3.2078,2543.7,2543.3,5.5459]
[1747725243232,3.2078,2543.7,2543.5,0.78605]
[1747725243233,1.6522,2543.6,2543.5,0.78605]
[1747725243838,1.6522,2543.6,2543.3,15.5788]
[1747725244034,2.43823,2543.6,2543.3,16.3649]
[1747725244234,2.43824,2543.6,2543.4,0.78608]
[1747725244535,3.61732,2543.6,2542.9,10.819]
[1747725244725,3.9939,2543.4,2543.0,1.5589]
[1747725245020,2.43892,2543.3,2543.1,0.78616]
[1747725245320,3.2078,2543.2,2543.1,0.78616]
[1747725245535,3.99395,2543.2,2543.0,1.5589]
[1747725245736,0.78621,2543.0,2542.4,44.79277]
[1747725245944,0.78622,2543.0,2542.8,11.61114681]
[1747725246236,1.6528,2542.9,2542.8,11.61114681]
[1747725246428,4.8606,2542.9,2542.8,11.61114681]
[1747725247033,3.2078,2542.9,2542.8,11.61114681]
[1747725248835,3.2078,2542.9,2542.8,11.61116681]
[1747725249138,3.99404,2542.9,2542.8,0.00589681]
[1747725249335,8.99404,2542.9,2542.8,0.00589681]
[1747725249637,0.78643,2542.3,2542.1,0.78647]
[1747725249831,3.2078,2542.2,2542.1,0.78647]
[1747725250334,5.9478,2542.2,2542.1,0.78647]
[1747725251143,3.2078,2542.2,2542.1,0.78647]
[1747725253145,0.00589681,2542.4,2542.3,0.78642]
[1747725253339,0.00589681,2542.4,2542.3,11.60742]
[1747725253638,3.2078,2542.5,2542.4,0.78639]
[1747725253835,3.2078,2542.5,2542.4,2.40409]
[1747725254435,3.2078,2542.5,2542.0,3.2078]
[1747725254645,3.2078,2542.2,2542.1,12.4397]
[1747725255632,3.2078,2542.2,2542.1,13.22619]
[1747725255833,3.2078,2542.2,2542.1,12.4397]
[1747725256035,3.2078,2542.2,2542.1,13.22619]
[1747725260942,3.99425,2542.2,2542.1,10.822]
[1747725261143,5.58505,2542.2,2542.1,10.822]
[1747725261634,5.58505,2542.2,2542.1,11.60849]
[1747725261834,4.7986,2542.2,2542.1,11.60849]
[1747725262742,5.58505,2542.2,2542.1,11.60849]
[1747725263438,5.58505,2542.2,2542.1,10.822]
[1747725263740,3.2078,2542.2,2542.1,11.60848]
[1747725263942,4.7534,2542.2,2542.1,11.60848]
[1747725264537,5.53985,2542.2,2542.1,11.60848]
[1747725264738,5.53985,2542.2,2542.1,10.822]
[1747725265245,8.27985,2542.2,2542.1,10.822]
[1747725266138,5.53985,2542.2,2542.1,10.822]
[1747725266338,3.2078,2542.2,2542.1,11.60849]
[1747725266543,3.99425,2542.2,2542.1,11.60849]
[1747725268041,3.2078,2542.2,2542.1,11.60849]
[1747725268444,3.2078,2542.2,2542.1,13.29209]
[1747725268945,3.2078,2542.2,2542.1,12.03836726]
[1747725269346,3.2078,2542.2,2542.1,11.25187726]
[1747725269539,3.99425,2542.2,2542.1,11.25187726]
[1747725269741,3.2078,2542.2,2542.1,12.03836726]
[1747725269937,3.2078,2542.2,2542.1,11.25187726]
[1747725270151,3.2078,2542.2,2542.1,12.03836726]
[1747725271554,4.64676961,2542.5,2542.1,11.25187726]
[1747725271852,3.2078,2542.5,2542.2,1.6104]
[1747725272150,3.2078,2542.5,2542.4,0.78639]
[1747725272856,3.2078,2542.5,2542.4,2.39679]
[1747725273152,3.2078,2542.5,2542.4,5.13679]
[1747725274351,0.00589681,2542.7,2542.6,0.78633]
[1747725274559,0.00589681,2542.7,2542.6,11.50333]
[1747725275561,0.00589681,2542.7,2542.6,16.50333]
[1747725275857,2.71369681,2542.8,2542.7,0.7863]
[1747725276053,2.21549681,2542.8,2542.7,0.7863]
[1747725276350,2.21549681,2542.8,2542.7,2.3509]
[1747725279258,2.21549681,2542.8,2542.7,13.0669]
[1747725280455,2.21549681,2542.8,2542.7,10.716]
[1747725280656,2.21549681,2542.8,2542.7,11.5023]
[1747725281358,2.21549681,2542.8,2542.7,0.7863]
[1747725281855,3.00177681,2542.8,2542.6,2.40052]
[1747725282159,1.6723,2542.7,2542.6,0.78632]
[1747725284353,2.21549681,2542.8,2542.7,0.7863]
[1747725285557,3.84069681,2542.8,2542.7,0.7863]
[1747725286053,4.62696681,2542.8,2542.7,0.7863]
[1747725286360,6.58069681,2542.8,2542.7,0.7863]
[1747725286563,7.36696681,2542.8,2542.7,0.7863]
[1747725286853,0.78631,2542.7,2542.6,0.78632]
[1747725287060,2.48021,2542.7,2542.6,0.78632]
[1747725287461,0.78633,2542.6,2542.5,1.6733]
[1747725287660,0.78633,2542.6,2542.4,11.50237]
[1747725287860,1.6939,2542.5,2542.4,11.50237]
[1747725288360,1.6939,2542.5,2542.4,0.78637]
[1747725288659,1.6939,2542.5,2542.1,10.716]
[1747725288864,0.7864,2542.4,2542.3,0.7864]
[1747725289764,2.56514477,2542.5,2542.4,0.78639]
[1747725290156,0.78639,2542.4,2542.3,0.7864]
[1747725290461,1.6965,2542.4,2542.1,11.50247]
[1747725290662,0.78644,2542.3,2542.1,11.50247]
[1747725290962,1.6965,2542.2,2542.1,11.50247]
[1747725291359,0.78652,2542.0,2541.9,0.00589681]
[1747725291861,4.9043,2542.2,2541.9,0.00589681]
[1747725292069,3.2078,2542.2,2542.1,0.78649]
[1747725294258,2.2976753,2542.5,2542.3,0.7864]
[1747725294459,2.61523187,2542.5,2542.4,1.7036]
[1747725294765,2.61523187,2542.5,2542.4,2.48999]
[1747725295966,0.97243187,2542.5,2542.4,2.48999]
[1747725296861,1.62875833,2543.0,2542.4,9.9114]
[1747725297053,1.62875833,2543.0,2542.8,0.78625]
[1747725297365,1.62875833,2543.0,2542.9,13.15054]
[1747725298269,1.62875833,2543.0,2542.9,15.89054]
[1747725299269,0.00589681,2543.0,2542.9,15.89054]
[1747725301762,4.74687633,2543.5,2542.9,15.89054]
[1747725301763,1.51517633,2543.5,2543.4,0.78608]
[1747725301966,3.2078,2544.1,2543.7,0.78599]
[1747725302266,1.10462097,2543.8,2543.7,3.99379]
[1747725302471,0.60462097,2543.8,2543.7,3.99379]
[1747725302766,3.2078,2544.1,2543.7,15.5016]
[1747725302970,1.6521,2544.0,2543.7,12.2938]
[1747725303272,1.6521,2544.0,2543.7,11.38898]
[1747725303571,3.2078,2543.8,2543.7,10.603]
[1747725304268,6.5727,2543.8,2543.7,10.603]
[1747725304479,6.5727,2543.8,2543.6,10.603]
[1747725304768,6.5727,2543.8,2543.7,0.78599]
[1747725305270,3.3649,2543.8,2543.7,0.78599]
[1747725305770,6.5727,2543.8,2543.7,0.78599]
[1747725305972,3.2078,2543.8,2543.7,0.78599]
[1747725306166,0.65465106,2544.3,2543.7,2.39539]
[1747725306365,3.2078,2544.0,2543.8,1.5958]
[1747725306770,3.2078,2544.0,2543.8,2.38173]
[1747725306771,1.7092,2543.9,2543.8,2.38173]
[1747725306972,1.7092,2543.9,2543.8,12.98373]
[1747725307877,3.2078,2544.0,2543.9,0.78593]
[1747725308065,3.2078,2544.0,2543.9,11.38693]
[1747725310271,1.7358,2544.2,2544.1,0.78587]
[1747725310467,1.7358,2544.2,2543.9,10.601]
[1747725310667,1.7358,2544.2,2544.0,0.7859]
[1747725310668,2.52166,2544.2,2544.0,0.7859]
[1747725311368,1.7358,2544.2,2543.7,1.7058]
[1747725311571,3.2078,2544.0,2543.5,0.00589681]
[1747725311875,4.9137,2543.9,2543.8,0.78596]
[1747725312270,1.7059,2543.9,2543.8,0.78596]
[1747725312570,3.2078,2544.2,2544.1,0.78587]
[1747725313173,3.2078,2544.2,2544.1,11.38687]
[1747725313672,0.65465106,2544.3,2544.2,0.78584]
[1747725313873,0.65465106,2544.3,2544.2,2.46854]
[1747725314072,3.2078,2544.6,2544.4,0.78575]
[1747725314273,4.8537,2544.6,2544.5,2.46844]
[1747725314467,4.8537,2544.6,2544.2,1.5665]
[1747725314665,4.8537,2544.6,2544.2,1.6827]
[1747725314666,3.2078,2544.3,2544.2,1.6827]
[1747725314868,3.99363,2544.3,2544.1,2.74]
[1747725315069,1.6459,2544.2,2543.6,11.386]
[1747725315272,3.99379,2543.7,2543.6,10.6]
[1747725315570,3.2078,2543.7,2543.6,10.6]
[1747725315770,3.2078,2543.7,2543.6,11.38602]
[1747725315971,3.2078,2544.0,2543.6,10.6]
[1747725316162,3.2078,2544.0,2543.9,0.78593]
[1747725317272,3.9937,2544.0,2543.9,13.34]
[1747725317674,3.2078,2544.0,2543.9,13.34]
[1747725317876,3.2078,2544.0,2543.9,14.12593]
[1747725318077,3.2078,2544.0,2543.9,13.19026962]
[1747725318982,5.0713,2544.2,2544.1,0.78587]
[1747725319170,0.65248127,2544.3,2544.2,0.78584]
[1747725320376,3.2078,2544.4,2544.2,0.78584]
[1747725320574,3.2078,2544.4,2544.2,2.43354]
[1747725320774,4.8823,2544.4,2544.3,0.78581]
[1747725320975,3.2078,2544.4,2544.3,2.43351]
[1747725321176,3.2078,2544.4,2544.3,5.17351]
[1747725321377,0.65248127,2544.5,2544.3,4.3877]
[1747725321679,5.66807,2544.4,2544.3,2.74]
[1747725322181,0.7859,2544.0,2543.9,10.599]
[1747725322373,3.99369,2544.1,2543.9,10.599]
[1747725322580,1.6745,2544.0,2543.9,11.38493]
[1747725323079,1.6745,2544.0,2543.9,14.12493]
[1747725323772,3.2078,2544.1,2544.0,0.7859]
[1747725323978,1.689,2544.4,2544.3,0.78581]
[1747725324582,6.689,2544.4,2544.0,1.5815]
[1747725324780,3.2078,2544.1,2543.8,10.599]
[1747725324979,3.4263,2544.0,2543.8,11.38495]
[1747725325584,4.21221,2544.0,2543.8,10.599]
[1747725325775,1.7294,2543.9,2543.8,10.599]
[1747725325970,3.4508,2543.9,2543.8,10.599]
[1747725326172,3.4508,2543.9,2543.8,11.38496]
[1747725328083,1.7373,2544.0,2543.9,0.78593]
[1747725328404,8.2117,2544.4,2544.3,0.78581]
[1747725328580,4.8543,2544.4,2544.3,0.78581]
[1747725329570,4.8543,2544.4,2544.1,1.5736]
[1747725329777,2.47052,2544.3,2544.1,1.5736]
[1747725330077,1.6847,2544.3,2543.8,10.49]
[1747725330280,0.78602,2543.6,2543.5,0.00589681]
[1747725330480,3.99382,2543.6,2543.5,0.00589681]
[1747725330774,8.99382,2543.6,2543.5,0.00589681]
[1747725330979,8.2078,2543.6,2542.9,10.49]
[1747725331284,3.2078,2543.0,2542.8,10.49]
[1747725331488,1.6847,2542.9,2542.8,11.27624]
[1747725331984,3.2078,2543.0,2542.9,0.78624]
[1747725332184,0.00589681,2543.1,2543.0,0.78621]
[1747725332378,0.00589681,2543.1,2543.0,2.40371]
[1747725332685,0.00589681,2543.1,2543.0,4.11921]
[1747725333179,3.21369681,2543.1,2542.9,11.27722]
[1747725333378,0.00589681,2543.1,2543.0,0.78621]
[1747725333685,0.00589681,2543.1,2543.0,2.40371]
[1747725335684,0.00589681,2543.1,2543.0,4.10551]
[1747725336278,0.00589681,2543.1,2543.0,6.84551]
[1747725336880,0.00589681,2543.1,2543.0,6.0593]
[1747725337085,0.00589681,2543.1,2543.0,14.8485]
[1747725337379,1.71349681,2543.1,2543.0,12.1085]
[1747725338585,0.00589681,2543.1,2543.0,12.89471]
[1747725339181,0.00589681,2543.1,2543.0,15.63471]
[1747725341091,0.00589681,2543.1,2543.0,12.1085]
[1747725341491,3.21369681,2543.1,2542.7,40.42528]
[1747725341687,0.78625,2542.9,2542.8,10.492]
[1747725341880,2.41813,2543.0,2542.8,12.92297]
[1747725342083,1.6319,2543.0,2542.8,12.1367]
[1747725342286,1.6319,2543.0,2542.8,12.92296]
[1747725342796,0.00589681,2543.1,2543.0,0.78621]
[1747725343393,0.00589681,2543.1,2542.9,0.78622]
[1747725343595,0.79209681,2543.1,2542.9,0.78622]
[1747725343790,1.6319,2543.0,2542.7,0.7863]
[1747725343997,0.78628,2542.8,2542.6,1.65059681]
[1747725344296,1.5857,2542.7,2542.6,2.43692681]
[1747725346704,5.5798,2542.7,2542.6,0.00589681]
[1747725348202,8.3198,2542.7,2542.6,0.00589681]
[1747725349310,5.5798,2542.7,2542.6,0.00589681]
[1747725349897,0.78645,2542.2,2542.1,11.28049]
[1747725350103,0.78645,2542.2,2542.1,10.494]
[1747725350503,2.42165,2542.2,2542.1,10.494]
[1747725350703,2.42165,2542.2,2542.1,12.219]
[1747725351594,2.42165,2542.2,2542.1,10.494]
[1747725352497,2.42165,2542.2,2542.1,12.219]
[1747725353104,2.42165,2542.2,2542.1,10.494]
[1747725353303,0.78652,2542.0,2541.9,10.50089681]